bitfinex-derivatives/quotes_SOLF0:USTF0_20240930
["timestamp","ask_amount","ask_price","bid_price","bid_amount"]
[1727704654404,0.12502,157.07,156.98,12.24]
[1727704654600,3.1846,157.02,156.99,3.1848]
[1727704655119,3.1845,157.02,156.99,3.1848]
[1727704656190,3.1845,157.02,156.98,12.24]
[1727704656403,3.1845,157.02,157.0,3.1848]
[1727704656603,3.1845,157.02,156.98,12.24]
[1727704657198,3.1845,157.02,156.99,3.1848]
[1727704657394,3.1845,157.02,157.0,12.24]
[1727704657608,0.12502,157.07,157.01,3.1846]
[1727704658302,3.1843,157.03,157.01,3.1846]
[1727704659597,3.1841,157.04,157.01,3.1846]
[1727704660507,0.12502,157.07,157.01,3.1846]
[1727704660703,3.1843,157.03,157.01,3.1846]
[1727704661320,0.12502,157.07,157.02,12.24]
[1727704661523,0.12502,157.07,157.02,15.4243]
[1727704661524,3.184,157.05,157.02,15.4243]
[1727704662102,3.184,157.04,157.02,15.4243]
[1727704662303,0.12502,157.07,157.02,12.24]
[1727704662605,3.1837,157.06,157.02,12.24]
[1727704662910,0.12502,157.07,156.99,15.4249]
[1727704663108,3.1846,157.02,156.99,15.4249]
[1727704663506,0.12502,157.07,156.99,15.4249]
[1727704663705,3.1847,157.01,156.98,3.1852]
[1727704664110,3.1847,157.01,156.97,12.24]
[1727704664305,0.12502,157.07,156.97,12.24]
[1727704664635,0.12502,157.07,156.95,68.92502]
[1727704664636,0.12502,157.07,157.01,12.24]
[1727704665006,0.12502,157.07,157.02,6.35325855]
[1727704665007,3.1837,157.06,157.02,6.35325855]
[1727704665202,0.12502,157.07,157.02,6.35325855]
[1727704665602,3.1839,157.05,157.02,6.35325855]
[1727704666713,3.1839,157.05,157.02,3.16895855]
[1727704666903,0.12502,157.07,157.03,3.1842]
[1727704666904,3.1837,157.06,157.03,3.1842]
[1727704667312,0.12502,157.07,157.02,3.16895855]
[1727704669116,0.12502,157.07,156.99,12.24]
[1727704669317,3.1843,157.03,157.0,3.1847]
[1727704669813,3.1843,157.03,157.0,3.2569025]
[1727704670721,3.1843,157.03,156.99,12.24]
[1727704670939,3.184,157.05,157.02,3.1842]
[1727704671142,3.184,157.05,157.02,6.30815868]
[1727704672315,0.12502,157.07,157.02,3.12395868]
[1727704672516,0.12502,157.07,157.03,3.184]
[1727704672718,0.12502,157.07,157.03,6.33471636]
[1727704673110,0.12502,157.07,157.03,3.15071636]
[1727704673311,3.1839,157.05,157.02,3.1843]
[1727704673513,3.1839,157.05,157.03,3.24798385]
[1727704673727,3.1837,157.06,157.04,15.424]
[1727704673915,0.12502,157.07,157.04,15.424]
[1727704675211,3.30852,157.07,157.04,15.424]
[1727704675622,0.12502,157.07,157.06,12.24]
[1727704675915,0.12502,157.07,156.99,3.8875]
[1727704675916,3.30842,157.07,157.04,12.24]
[1727704676121,0.12502,157.07,157.02,12.24]
[1727704676341,0.12502,157.07,157.02,18.63820184]
[1727704676517,3.184,157.04,157.02,18.63820184]
[1727704676822,0.12502,157.07,157.02,15.45390184]
[1727704677023,3.1837,157.06,157.03,3.1842]
[1727704677212,0.12502,157.07,157.04,12.24]
[1727704677418,0.12502,157.07,157.04,15.4239]
[1727704677617,3.30862,157.07,157.04,15.4239]
[1727704677841,0.12502,157.07,157.04,12.24]
[1727704678021,0.12502,157.07,157.04,15.4406385]
[1727704678216,3.1836,157.06,157.04,15.4406385]
[1727704678816,3.1838,157.05,157.04,15.4406385]
[1727704679425,3.1838,157.05,157.04,3.2006385]
[1727704679618,3.1841,157.04,157.02,12.24]
[1727704680222,3.1841,157.04,157.02,18.60837643]
[1727704680824,3.1839,157.05,157.02,18.60837643]
[1727704682728,0.12502,157.07,157.02,15.42407643]
[1727704683025,3.1842,157.03,157.02,12.24]
[1727704683228,0.12502,157.07,157.0,3.1847]
[1727704683528,3.1845,157.02,157.0,6.31993154]
[1727704684655,3.1843,157.03,157.0,6.31993154]
[1727704684831,3.1843,157.03,157.01,3.1846]
[1727704685328,3.1843,157.03,157.0,6.31983154]
[1727704685521,3.1844,157.02,157.0,6.31983154]
[1727704685719,3.1844,157.02,157.01,7.83]
[1727704689525,3.1844,157.03,157.01,7.83]
[1727704689726,3.1844,157.03,157.02,7.83]
[1727704691043,3.1841,157.04,157.02,7.83]
[1727704691330,3.1841,157.04,157.0,3.13523154]
[1727704691331,3.1841,157.04,157.03,7.83]
[1727704691926,7.95502,157.07,156.99,3.8875]
[1727704692145,0.12502,157.07,156.94,1.3354]
[1727704692344,0.12502,157.07,156.96,17.07264765]
[1727704692533,7.83,157.01,156.96,11.0155]
[1727704692723,7.83,157.01,156.96,11.0156]
[1727704693734,13.5035,157.05,156.96,3.1856]
[1727704694832,13.5035,157.05,156.94,14.9085]
[1727704695134,12.23,157.02,156.93,1.344]
[1727704695431,1.2735,157.05,156.93,4.5301]
[1727704695634,3.1856,156.96,156.93,4.5301]
[1727704696029,12.23,157.01,156.93,1.344]
[1727704696229,3.1855,156.97,156.94,3.186]
[1727704697136,3.1855,156.97,156.95,72.09082]
[1727704698143,3.1855,156.97,156.95,68.90502]
[1727704699838,3.1854,156.98,156.95,81.13502]
[1727704700037,13.5035,157.05,156.95,81.13502]
[1727704700441,13.5035,157.05,156.95,12.35502]
[1727704701031,3.1851,156.99,156.97,3.1854]
[1727704701236,3.1851,156.99,156.95,12.35502]
[1727704701536,3.1844,157.02,156.95,15.54082]
[1727704701730,13.5035,157.05,156.95,15.54082]
[1727704702344,3.1855,156.97,156.95,15.54082]
[1727704703235,13.5035,157.05,156.95,0.12502]
[1727704703236,3.1856,156.96,156.95,0.12502]
[1727704709048,3.1856,156.97,156.95,3.31082]
[1727704709348,12.23,157.03,156.95,0.12502]
[1727704710240,3.1856,156.96,156.95,0.12502]
[1727704710547,6.3681,157.04,156.95,0.12502]
[1727704710760,1.2735,157.05,156.97,12.23]
[1727704711048,3.185,157.0,156.97,15.4153]
[1727704711238,3.185,157.0,156.97,12.23]
[1727704711549,1.2735,157.05,156.97,12.23]
[1727704711851,3.1847,157.01,156.99,3.185]
[1727704712049,3.1847,157.01,156.97,12.23]
[1727704712450,3.1848,157.0,156.98,3.1851]
[1727704713144,3.1848,157.0,156.97,12.23]
[1727704713365,3.1848,157.0,156.97,15.4153]
[1727704713699,3.1848,157.0,156.96,2.5833]
[1727704713700,7.83,157.02,156.96,1.2995]
[1727704713948,1.2735,157.05,156.96,7.83]
[1727704714059,3.1854,156.97,156.96,7.83]
[1727704714258,7.83,157.0,156.95,7.95502]
[1727704714464,7.83,156.99,156.95,7.95502]
[1727704714956,3.1856,156.96,156.95,7.95502]
[1727704717652,3.1856,156.96,156.95,0.12502]
[1727704739770,11.0156,156.96,156.95,0.12502]
[1727704740587,7.83,156.96,156.89,7.95502]
[1727704740776,7.83,156.95,156.9,7.83]
[1727704740966,7.83,156.96,156.91,7.83]
[1727704741669,3.1862,156.94,156.93,7.83]
[1727704742274,7.83,156.97,156.91,7.83]
[1727704742592,3.1864,156.93,156.91,7.83]
[1727704745882,9.1219,156.98,156.91,7.83]
[1727704746192,3.1864,156.92,156.91,7.83]
[1727704750174,3.1863,156.93,156.91,7.83]
[1727704750375,3.1863,156.93,156.92,7.83]
[1727704750675,3.1855,156.97,156.92,7.83]
[1727704750902,3.1855,156.97,156.89,0.12502]
[1727704750903,1.2558,156.99,156.95,7.83]
[1727704751206,14.32462,157.01,156.96,7.83]
[1727704751681,3.1854,156.97,156.96,7.83]
[1727704752977,0.12502,157.01,156.96,7.83]
[1727704753276,0.12502,157.01,157.0,7.83]
[1727704754079,3.30962,157.01,157.0,7.83]
[1727704770893,3.1856,156.97,156.94,3.8938]
[1727704771093,0.12502,157.01,156.96,7.83]
[1727704771289,0.12502,157.01,157.0,7.83]
[1727704771698,3.30962,157.01,157.0,7.83]
[1727704774803,3.1848,157.0,156.99,7.83]
[1727704776317,0.12502,157.01,156.94,3.8938]
[1727704776701,7.83,157.0,156.89,68.94502]
[1727704777017,1.44882,157.01,156.9,6.06557922]
[1727704777318,1.44882,157.01,156.91,6.06557922]
[1727704777507,1.44882,157.01,156.89,68.94502]
[1727704777508,6.3701,156.99,156.89,68.94502]
[1727704778002,3.1869,156.9,156.89,68.94502]
[1727704778307,3.1869,156.9,156.89,76.77502]
[1727704779405,3.1869,156.9,156.89,0.12502]
[1727704782122,3.1869,156.9,156.89,7.95502]
[1727704783803,6.3701,156.99,156.89,7.95502]
[1727704784013,14.2001,156.99,156.93,7.83]
[1727704784205,14.2001,156.99,156.94,7.83]
[1727704784417,3.1858,156.95,156.94,7.83]
[1727704785511,1.2729,157.0,156.91,12.24]
[1727704785707,3.1864,156.93,156.91,12.24]
[1727704787319,1.2729,157.0,156.91,12.24]
[1727704787320,3.1864,156.92,156.91,12.24]
[1727704787519,12.24,156.99,156.89,12.36502]
[1727704788311,12.24,156.97,156.89,0.12502]
[1727704788517,3.1869,156.9,156.89,0.12502]
[1727704792613,3.1879,156.85,156.84,0.12518]
[1727704805430,13.5155,156.92,156.84,0.12518]
[1727704805631,7.84,156.89,156.85,7.84]
[1727704805829,3.1877,156.86,156.85,7.84]
[1727704806724,3.1874,156.88,156.85,7.84]
[1727704806923,3.1874,156.88,156.87,7.84]
[1727704807527,3.1876,156.87,156.86,7.84]
[1727704809020,6.3705,156.99,156.86,11.0275]
[1727704809225,7.84,156.96,156.91,7.84]
[1727704809921,9.0829,156.97,156.92,7.84]
[1727704810525,3.1864,156.93,156.89,3.24992649]
[1727704810726,9.0829,156.97,156.85,1.2941]
[1727704810921,7.84,156.96,156.91,7.84]
[1727704811425,3.1864,156.92,156.91,7.84]
[1727704811830,1.2429,156.97,156.88,12.24]
[1727704812027,3.1869,156.9,156.88,12.24]
[1727704816231,3.1869,156.9,156.88,15.38388186]
[1727704816433,1.2429,156.97,156.88,15.38388186]
[1727704816638,3.1867,156.91,156.89,3.187]
[1727704816929,3.1867,156.91,156.88,3.14388186]
[1727704817134,3.1867,156.91,156.88,3.1872]
[1727704817353,3.187,156.9,156.88,6.32088067]
[1727704817634,3.187,156.9,156.88,3.13368067]
[1727704817835,3.187,156.9,156.87,3.1874]
[1727704818043,1.2429,156.97,156.85,1.2941]
[1727704818433,1.2429,156.97,156.87,12.24]
[1727704819349,3.1872,156.89,156.87,12.24]
[1727704820732,3.1872,156.89,156.88,3.2093216]
[1727704823143,1.2429,156.97,156.87,12.24]
[1727704823345,1.2429,156.97,156.91,12.24]
[1727704823846,1.2429,156.97,156.89,12.24]
[1727704824043,1.2429,156.97,156.88,3.22430862]
[1727704824346,3.187,156.9,156.87,12.24]
[1727704824544,3.187,156.9,156.88,3.17712206]
[1727704824839,1.2429,156.97,156.89,12.24]
[1727704825547,3.1868,156.91,156.89,12.24]
[1727704826040,3.1869,156.9,156.89,12.24]
[1727704829347,3.1869,156.9,156.88,3.26639393]
[1727704829544,3.1869,156.9,156.88,15.50639393]
[1727704831342,3.1871,156.89,156.88,15.50639393]
[1727704833642,7.95502,156.95,156.88,11.09639393]
[1727704833944,0.12502,156.95,156.91,7.83]
[1727704835350,3.1868,156.92,156.91,7.83]
[1727704839145,7.83,156.94,156.85,1.2941]
[1727704839363,7.83,156.92,156.86,7.83]
[1727704839552,7.83,156.91,156.85,1.2941]
[1727704839744,7.83,156.91,156.85,7.83]
[1727704839938,4.50058666,156.94,156.85,7.83]
[1727704839939,7.83,156.9,156.85,7.83]
[1727704840351,7.83,156.9,156.84,1.40118]
[1727704840559,7.83,156.86,156.84,0.12518]
[1727704840782,1.3121,156.89,156.84,0.12518]
[1727704841067,3.1882,156.85,156.84,0.12518]
[1727704843752,7.83,156.85,156.83,0.12502]
[1727704843947,3.1884,156.84,156.83,0.12502]
[1727704845555,3.1881,156.86,156.83,0.12502]
[1727704845747,3.1881,156.86,156.85,7.83]
[1727704846148,3.1882,156.85,156.83,0.12502]
[1727704846349,3.1882,156.85,156.84,7.83]
[1727704847147,3.1881,156.86,156.84,7.83]
[1727704847455,3.1881,156.86,156.85,7.83]
[1727704847957,7.83,156.91,156.85,7.83]
[1727704848169,2.5676,156.93,156.9,7.83]
[1727704848356,1.2865,156.93,156.9,7.83]
[1727704848561,3.1864,156.94,156.92,7.83]
[1727704848850,0.12502,156.95,156.92,7.83]
[1727704849452,0.12502,156.95,156.91,7.83]
[1727704850254,7.95502,156.95,156.9,7.83]
[1727704850760,3.1871,156.91,156.87,3.1878]
[1727704851064,7.95502,156.95,156.9,7.83]
[1727704851250,0.12502,156.95,156.91,7.83]
[1727704851458,0.12502,156.95,156.93,7.83]
[1727704851657,0.12502,156.95,156.94,7.83]
[1727704851961,3.31122,156.95,156.94,7.83]
[1727704852759,0.12502,156.95,156.94,7.83]
[1727704853867,1.37512,157.01,156.94,7.83]
[1727704854183,7.83,157.0,156.91,3.18361447]
[1727704854404,3.1862,156.95,156.91,3.1869]
[1727704854575,3.1862,156.95,156.94,7.83]
[1727704854752,7.83,157.0,156.94,7.83]
[1727704854753,3.1857,156.98,156.94,7.83]
[1727704854959,7.83,157.0,156.94,7.83]
[1727704855961,3.1855,156.99,156.98,7.83]
[1727704862466,1.37512,157.01,156.97,7.83]
[1727704862667,3.1855,156.98,156.97,7.83]
[1727704863256,9.20512,157.01,156.89,72.18777691]
[1727704863464,3.1866,156.93,156.89,72.18777691]
[1727704863766,9.20512,157.01,156.91,3.1868]
[1727704863965,9.20512,157.01,156.96,7.83]
[1727704865462,3.1858,156.97,156.96,7.83]
[1727704867165,7.83,156.97,156.89,3.34777691]
[1727704867368,7.83,156.97,156.91,7.83]
[1727704867569,7.83,156.94,156.89,0.12502]
[1727704867761,7.83,156.93,156.89,0.12502]
[1727704867966,3.1872,156.9,156.89,0.12502]
[1727704871473,3.1871,156.91,156.89,0.12502]
[1727704872471,1.3017,156.96,156.89,0.12502]
[1727704872772,7.6725,156.99,156.9,12.24]
[1727704872773,3.1867,156.93,156.9,12.24]
[1727704872965,7.6725,156.99,156.9,12.24]
[1727704872966,1.3015,156.99,156.9,12.24]
[1727704873165,1.3015,156.99,156.89,0.12502]
[1727704873166,3.1865,156.94,156.93,12.24]
[1727704874179,1.3015,156.99,156.89,2.82532]
[1727704874471,12.24,156.98,156.89,1.47662]
[1727704874677,3.1871,156.91,156.89,0.12502]
[1727704874867,12.24,156.98,156.89,0.12502]
[1727704875377,13.5415,156.99,156.89,0.12502]
[1727704876075,3.1869,156.92,156.89,0.12502]
[1727704876280,13.5415,156.99,156.89,0.12502]
[1727704876476,1.3015,156.99,156.89,0.12502]
[1727704876670,3.1869,156.92,156.89,0.12502]
[1727704876976,13.5415,156.99,156.89,0.12502]
[1727704877177,3.187,156.91,156.89,0.12502]
[1727704877370,13.5415,156.99,156.89,3.31232]
[1727704877773,1.3015,156.99,156.92,12.24]
[1727704878076,2.5809,157.0,156.92,15.4267]
[1727704878679,3.1863,156.95,156.92,15.4267]
[1727704878873,3.1863,156.95,156.92,12.24]
[1727704879079,2.5809,157.0,156.92,12.24]
[1727704879780,2.5809,157.0,156.94,12.24]
[1727704880174,0.12502,157.01,156.98,12.24]
[1727704880175,3.1855,156.99,156.98,12.24]
[1727704880571,0.12502,157.01,156.98,12.24]
[1727704880877,3.1853,157.0,156.98,12.24]
[1727704881065,0.12502,157.01,156.98,12.24]
[1727704881266,0.12502,157.01,156.96,15.35925631]
[1727704881470,0.12502,157.01,156.96,12.24]
[1727704881668,0.12502,157.01,156.96,15.44823464]
[1727704881881,3.1855,156.99,156.96,15.44823464]
[1727704883081,0.12502,157.01,156.96,15.44823464]
[1727704883381,3.1856,156.98,156.96,15.44823464]
[1727704884482,3.1858,156.97,156.96,15.44823464]
[1727704884875,3.1858,156.97,156.96,12.24]
[1727704885278,0.12502,157.01,156.94,12.24]
[1727704885486,0.12502,157.01,156.93,12.24]
[1727704885874,3.1865,156.94,156.93,12.24]
[1727704888372,3.1858,156.97,156.93,12.24]
[1727704888575,3.1858,156.97,156.96,12.24]
[1727704889985,0.12502,157.01,156.96,15.4259]
[1727704889986,3.1856,156.98,156.96,15.4259]
[1727704890181,3.1856,156.98,156.96,15.47964834]
[1727704890988,0.12502,157.01,156.97,12.24]
[1727704891291,2.6424,157.06,157.0,12.24]
[1727704891292,1.3292,157.06,157.0,12.24]
[1727704891486,3.1849,157.01,157.0,12.24]
[1727704893594,3.1847,157.03,157.0,12.24]
[1727704893889,3.1847,157.03,157.02,12.24]
[1727704895387,3.185,157.01,157.0,12.24]
[1727704897191,18.6074,157.08,156.99,12.24]
[1727704897588,18.6074,157.08,156.97,12.24]
[1727704897787,12.24,157.06,156.97,12.24]
[1727704897989,1.2926,157.05,156.97,12.24]
[1727704899490,3.1855,156.99,156.97,12.24]
[1727704899886,1.2926,157.05,156.97,12.24]
[1727704900094,1.2926,157.05,156.95,12.36502]
[1727704900296,2.6168,157.04,156.95,12.36502]
[1727704900484,3.186,156.96,156.95,12.36502]
[1727704901086,2.6168,157.04,156.95,12.36502]
[1727704901287,3.1857,156.98,156.97,12.24]
[1727704901587,2.6168,157.04,156.97,12.24]
[1727704901988,3.1855,156.99,156.97,12.24]
[1727704902494,1.2926,157.05,156.98,12.24]
[1727704902495,3.1851,157.01,156.98,12.24]
[1727704902688,1.2926,157.05,156.98,12.24]
[1727704903095,3.1846,157.03,156.98,12.24]
[1727704903289,1.2926,157.05,156.98,12.24]
[1727704903596,1.2926,157.05,156.98,15.4255]
[1727704904094,3.1851,157.01,156.98,15.4255]
[1727704904790,3.1851,157.01,156.98,12.24]
[1727704904997,3.1852,157.0,156.98,12.24]
[1727704905197,13.5326,157.05,156.95,0.12502]
[1727704905498,3.186,156.96,156.95,0.12502]
[1727704906196,12.24,157.03,156.95,0.12502]
[1727704906499,3.1857,156.98,156.95,15.55112]
[1727704907199,3.185,157.01,156.98,3.1854]
[1727704907495,0.12502,157.07,157.0,12.24]
[1727704907695,3.1841,157.05,157.0,15.425]
[1727704907993,0.12502,157.07,157.0,15.425]
[1727704908396,0.12502,157.07,157.01,3.1849]
[1727704908694,0.12502,157.07,157.03,12.24]
[1727704909399,3.1841,157.06,157.03,12.24]
[1727704910900,0.12502,157.07,157.03,12.24]
[1727704911087,3.1843,157.05,157.03,12.24]
[1727704913299,0.12502,157.07,157.04,12.24]
[1727704913496,0.12502,157.07,157.04,15.4243]
[1727704913802,0.12502,157.07,157.06,12.24]
[1727704915206,3.1836,157.08,157.06,12.24]
[1727704917810,3.1835,157.09,157.06,15.4238]
[1727704918009,0.12502,157.13,157.08,12.24]
[1727704919604,0.12502,157.13,157.05,3.1841]
[1727704919605,0.12502,157.13,157.07,12.24]
[1727704920113,0.12502,157.13,157.11,12.24]
[1727704920708,3.30762,157.13,157.11,12.24]
[1727704920903,1.2461,157.17,157.11,15.3842498]
[1727704921101,1.2461,157.17,157.14,12.24]
[1727704921611,0.12502,157.19,157.14,12.24]
[1727704922209,0.12502,157.19,157.18,12.24]
[1727704922906,3.30632,157.19,157.18,12.24]
[1727704924510,0.12502,157.19,157.18,12.24]
[1727704924711,3.1812,157.2,157.18,12.24]
[1727704925106,3.1813,157.19,157.18,12.24]
[1727704929605,0.12502,157.25,157.16,12.24]
[1727704929805,3.1818,157.17,157.16,12.24]
[1727704934612,2.6478,157.24,157.14,12.24]
[1727704934813,3.1821,157.15,157.14,12.24]
[1727704935013,12.24,157.23,157.13,0.12502]
[1727704935219,3.1823,157.14,157.13,0.12502]
[1727704938021,3.1823,157.14,157.07,12.36502]
[1727704938022,2.6561,157.17,157.07,12.36502]
[1727704938225,3.1835,157.08,157.07,12.36502]
[1727704939124,3.1835,157.08,157.07,0.12502]
[1727704942626,12.24,157.1,157.01,68.86502]
[1727704942919,3.1847,157.02,157.01,68.86502]
[1727704943125,3.1847,157.02,157.01,0.12502]
[1727704951739,15.43433023,157.06,156.95,12.36502]
[1727704951931,3.1859,156.97,156.95,12.36502]
[1727704952235,12.24,157.03,156.95,12.36502]
[1727704952434,3.186,156.96,156.95,0.12502]
[1727704959752,3.186,156.96,156.95,12.36502]
[1727704960245,3.186,156.96,156.95,0.12502]
[1727704966454,3.8778,157.02,156.95,0.12502]
[1727704966647,3.1857,156.98,156.95,0.12502]
[1727704966843,3.8778,157.02,156.95,0.12502]
[1727704967648,3.1859,156.97,156.95,0.12502]
[1727704968652,3.8778,157.02,156.95,0.12502]
[1727704968860,3.186,156.96,156.95,0.12502]
[1727704970855,12.24,156.97,156.9,1.2609]
[1727704971154,12.24,156.97,156.89,0.12502]
[1727704971659,3.1872,156.9,156.89,0.12502]
[1727704971859,12.24,156.97,156.89,0.12502]
[1727704972055,12.24,156.99,156.89,0.12502]
[1727704972659,3.186,156.96,156.89,3.31232]
[1727704972855,12.24,156.99,156.89,3.31232]
[1727704973553,3.1869,156.92,156.89,3.31232]
[1727704974162,3.1871,156.91,156.89,0.12502]
[1727704974865,3.1872,156.9,156.89,0.12502]
[1727704976755,3.187,156.92,156.89,3.31232]
[1727704976962,12.24,156.98,156.89,3.31232]
[1727704977353,3.1869,156.92,156.9,3.1872]
[1727704977553,3.1869,156.92,156.89,0.12502]
[1727704977765,12.24,156.98,156.89,0.12502]
[1727704977966,3.1871,156.91,156.89,0.12502]
[1727704979866,12.24,156.98,156.89,0.12502]
[1727704980065,3.1872,156.9,156.89,0.12502]
[1727704982467,12.24,156.92,156.83,68.96502]
[1727704982668,3.1884,156.84,156.83,0.12502]
[1727704987669,2.6411,156.89,156.83,0.12502]
[1727704988374,3.1883,156.85,156.83,0.12502]
[1727704988675,2.6411,156.89,156.83,0.12502]
[1727704988978,3.1877,156.88,156.83,0.12502]
[1727704989275,1.3366,156.92,156.85,12.24]
[1727704989676,3.1877,156.88,156.85,15.4281]
[1727704989878,1.3366,156.92,156.85,12.24]
[1727704990178,3.1876,156.88,156.85,15.4281]
[1727704990476,1.3366,156.92,156.85,12.24]
[1727704990678,3.1878,156.87,156.85,12.24]
[1727704991077,1.3366,156.92,156.85,12.24]
[1727704991278,3.1877,156.88,156.85,15.4282]
[1727704991677,1.3366,156.92,156.87,12.24]
[1727704991884,3.1868,156.92,156.89,12.24]
[1727704992079,78.46222451,156.94,156.89,12.24]
[1727704992278,78.46222451,156.94,156.86,12.24]
[1727704992472,78.46222451,156.94,156.84,13.5273]
[1727704993080,3.1878,156.87,156.84,13.5273]
[1727704993480,3.1883,156.85,156.83,0.12502]
[1727704993780,12.24,156.91,156.83,0.12502]
[1727704994174,3.1884,156.84,156.83,0.12502]
[1727705000705,3.1895,156.79,156.77,0.12502]
[1727705001898,12.24,156.87,156.77,0.12502]
[1727705002100,3.1893,156.8,156.77,3.31482]
[1727705003998,1.2599,156.88,156.77,0.12502]
[1727705004199,12.24,156.85,156.77,0.12502]
[1727705004393,1.3063,156.84,156.77,0.12502]
[1727705004599,3.1896,156.78,156.77,0.12502]
[1727705010406,3.1905,156.74,156.71,69.00502]
[1727705010707,12.24,156.8,156.71,69.00502]
[1727705011107,3.1905,156.74,156.71,69.00502]
[1727705011700,12.24,156.8,156.71,69.00502]
[1727705011903,3.1906,156.73,156.71,72.19602]
[1727705012803,3.1908,156.72,156.71,69.00502]
[1727705013009,3.1908,156.72,156.71,0.12502]
[1727705020807,3.1903,156.75,156.71,0.12502]
[1727705021111,1.2561,156.77,156.71,0.12502]
[1727705021619,3.1908,156.72,156.71,0.12502]
[1727705027714,11.0408,156.72,156.71,0.12502]
[1727705030714,7.85,156.72,156.65,0.12502]
[1727705031019,3.1921,156.66,156.65,0.12502]
[1727705031316,11.0421,156.66,156.65,0.12502]
[1727705033513,3.1921,156.66,156.65,0.12502]
[1727705035122,15.4521,156.66,156.65,0.12502]
[1727705036623,3.1933,156.6,156.59,0.12502]
[1727705038521,1.2701,156.65,156.59,0.12502]
[1727705039520,3.1926,156.64,156.59,0.12502]
[1727705039723,13.5661,156.67,156.59,0.12502]
[1727705039918,13.5661,156.67,156.59,12.38502]
[1727705039919,1.3061,156.67,156.59,12.38502]
[1727705040225,1.3061,156.67,156.59,0.12502]
[1727705040226,13.5661,156.67,156.59,0.12502]
[1727705040719,3.1926,156.64,156.59,3.31832]
[1727705041522,3.1923,156.65,156.59,3.31832]
[1727705041719,13.5661,156.67,156.59,3.31832]
[1727705041912,12.26,156.69,156.61,3.193]
[1727705042119,3.1925,156.64,156.6,12.26]
[1727705042615,12.26,156.69,156.6,12.26]
[1727705042816,3.1923,156.65,156.6,12.26]
[1727705043016,3.8706,156.7,156.62,3.1928]
[1727705043222,3.1921,156.67,156.62,3.1928]
[1727705043423,3.8706,156.7,156.61,12.26]
[1727705043721,12.26,156.69,156.6,6.9831]
[1727705043923,3.1924,156.65,156.6,6.9831]
[1727705044224,12.26,156.69,156.6,3.7899]
[1727705044419,3.192,156.67,156.6,3.7899]
[1727705044624,12.26,156.69,156.6,3.7899]
[1727705044823,12.26,156.69,156.6,6.983]
[1727705045022,12.26,156.69,156.6,3.7899]
[1727705045222,3.1924,156.65,156.62,3.1929]
[1727705045417,3.8706,156.7,156.61,12.26]
[1727705045621,0.12502,156.71,156.63,12.26]
[1727705046223,0.12502,156.71,156.66,12.26]
[1727705046428,0.12502,156.71,156.62,3.25745299]
[1727705046727,0.12502,156.71,156.65,15.4522]
[1727705047321,0.12502,156.71,156.65,3.1922]
[1727705048829,3.1916,156.69,156.65,3.1922]
[1727705049018,3.1916,156.69,156.64,12.26]
[1727705049223,3.1916,156.69,156.66,15.452]
[1727705050124,3.1914,156.7,156.68,12.26]